Workbook

Sheet 確認事項
A1: NO. | B1: 確認事項 | C1: 回答 | D1: CLOSE

Sheet 変更履歴
A1: MMO観測計画作成ツール 変更履歴
A2: 日付 | B2: Ver | C2: 変更者 | D2: 変更内容
A3: 2021-08-06 | B3: 1 | C3: 山下 | D3: -
A4: 2021-08-09 | B4: 2 | C4: arare | D4: コマンド出力のmain end部分を出力するように修正した ListにMSA_HV_ON_VFB1、MSA_HV_ON_VFB2追加 Obs_sequence XOR Time行追記 コマンドの開始終了時間をOBS時間に変更
A5: 2021-08-17 | B5: 3 | C5: arare | D5: WOLの時間をG列から取得するように変更
A6: 2021-08-25 | B6: 4 | C6: arare | D6: COMMENTにmainstart,endのXDOR,XOR用追記
A7: 2021-09-27 | B7: 5 | C7: arare | D7: ＃refの対応 obserbation Aから昇順につける
A8: 2021-10-19 | B8: 6 | C8: arare | D8: ListにMSAHV追記
A9: 2021-10-21 | B9: 7 | C9: arare | D9: Listを最新にした
A10: 2022-03-08 | B10: 8 | C10: arare | D10: Listを最新にした、XDOR用コメントはプログラム改修により使用なし
A11: 2022-03-23 | B11: 9 | C11: arare | D11: List にENA HV ON追加、コメントの修正

Sheet 実行
F8: 【操作】
A9: C番号 | B9: 976 | F9: 「実行」シートの「観測作成」を押下。
A10: M番号 | B10: 630601 | F10: →「START」、「LOOP」、「END」を「obs_sequence」に貼り付けます。
F11: 「実行」シートの「時刻反映」を押下。
F12: →WOLの時間と関数エラーとなっているセルを修正します。
F13: 【注意点】
F14: 「START」、「LOOP」、「END」の"cmd count"からシート内に何行あるかを取得しているので、ここは空白がないように"0”を入力してください。
F15: もし空白があった場合、コピー範囲が小さくなってしまいます。
F16: ”WOL”シートの4行目以下は、実施するWOLのみを記載すること。 (4行目以下に、期間開始日時と終了日時の記載は不要です。)

Sheet チェック表 (hidden)
B2: コマンド作成時注意項目
B3: NO. | C3: 項目 | D3: チェック
B4: 1 | C4: 観測期間開始時に「dcsm-EF_BUS_MONI_ON」手順が入っていることを確認する。 ただし、前回の観測終了時に「dcsm-EF_BUS_MONI_OFF」を実行していない場合は確認不要。 | D4: □
B5: 2 | C5: 観測期間開始日に、観測する機器の”ON”手順が入っていることを確認する。 ただし、PWI、MGF、MAST、WPTを"ON"にする場合は、PWI、MGF、MAST、WPTよりも先にPMEが"ON"となっていること。 ※クルーズ観測中は、MEA1,HEPE,MGFのみ”ON” | D5: □
B6: 3 | C6: TLM MODEが観測前に「５」 観測終了後は「１０」 となっていることを確認する | D6: □
B7: 4 | C7: 観測時間が”86400”を超えるていないか確認する。 超えていた場合は、main計画作成時に途中ダミーコマンドを挿入すること
B8: 5 | C8: WOLの開始時刻が正しいことを確認する | D8: □
B9: 6 | C9: WOLの時間を確認 HV OFFになっていることを確認する ↓ クルーズ観測を行っている機器(HEPE、ENA、MIA、MEA、MSAのみ) フライバイを行っている機器(MSA,PWI,MGF,MEA,ENA,MIA,HEPE,MDM) | D9: □
B10: 7 | C10: WOL終了時刻＋10以降にのHVがONになっていることを確認する。 クルーズ観測を行っている機器(HEPE、ENA、MIA、MEA、MSAのみ) フライバイを行っている機器(MSA,PWI,MGF,MEA,ENA,MIA,HEPE,MDM) | D10: □
B11: 8 | C11: 観測期間最終日に、観測を行った機器の”OFF”手順が入っていることを確認する。 ただし、PWI,MGF,MAST,WPT-OFF手順の後にPME-OFF手順が入っていることを確認する。 | D11: □
B12: 9 | C12: MDP_POWEROFFのあとにdcsm-MC_ENA_MDPが入っていることを確認する。 | D12: □
B13: 10 | C13: CELのMONI ONは長時間(1h以上の場合は、山下さんと要相談)しないこと BUSにはCELのみのもあるので注意 dcsm-BUS_CEL_MONI_ON dcsm-BUS_CEL_MONI_OFF | D13: □
B14: 11 | C14: MEA1の SCAN ON は dcsm-EF_MEA1_ON_SW.cpsに入っているので 順番は MDP ONして dcsm-EF_MEA1_ON_SW.cps dcsm-EF_MEA1_HV_ON.cps dcsm-EF_MEA1_HV_OFF.cps dcsm-EF_MEA1_HV_ON.cps dcsm-EF_MEA1_HV_SCAN_OFF.cps dcsm-EF_MEA1_OFF.cps MDP OFF dcsm-EF_MEA_ON_SW.cps dcsm-EF_MEA_HV_ON.cps dcsm-EF_MEA_HV_OFF.cps dcsm-EF_MEA_HV_ON.cps dcsm-EF_MEA_HV_SCAN_OFF.cps dcsm-EF_MEA_OFF.cps になる SCAN OFFにすると データが出てこない HV OFF->ON時は注意する | D14: □
B15: 13 | C15: 2021/6/25以降 dcsm-EF_MSA_ON_C が最新 dcsm-EF_MSA_ONは使用しない | D15: □
B16: 14 | C16: 2021/6/25以降 dcsm-CRCO_MIA_CHECK_C が最新 dcsm-CRCO_MIA_CHECKは使用しない（クルーズチェックアウトの時） | D16: □
B17: 15 | C17: 2021/6/25以降 dcsm-CRCO_MSA_CHECK_C が最新 dcsm-CRCO_MSA_CHECKは使用しない（クルーズチェックアウトの時） | D17: □
B18: 16 | C18: フライバイ時、MIAのHV_ON時間帯によって違うので必ず確認する MIA_HV_ON_RC MIA_HV_ON_SW_RC MIA_HV_ON_MAG_RC | D18: □
B19: 17 | C19: Excelの時間を確認する 時間通りになっているか | D19: □

Sheet START
A1: Start | B1: End | C1: Start | D1: End | E1: Event | F1: Activity | G1: Procedure | H1: Duration (sec) | L1: cmd count | N1: cmd count
C2: =#REF! ->  | D2: =C2+H2/3600/24 ->  | F2: BUS_ON | G2: BUS_SETUP_D | H2: =VLOOKUP(G2,List!B:C,2,0) -> 577 | K2: =VLOOKUP(G2,List!B:E,4,0) -> dcsm-EF_BUS_MONI_ON | L2: =VLOOKUP(G2,List!B:G,6,0) -> 20 | M2: =C2-317/3600/24 ->  | N2: =+"0000 CALL "&K2&" -Run" -> 0000 CALL dcsm-EF_BUS_MONI_ON -Run | P2: CALL | Q2: dcsm-EF_BUS_MONI_ON | U2: =+IF(Q2=K2,"","x") -> 
C3: =D2 ->  | D3: =C3+H3/3600/24 ->  | F3: MDP ON | G3: MDP_ON_D | H3: =VLOOKUP(G3,List!B:C,2,0) -> 509 | K3: =VLOOKUP(G3,List!B:E,4,0) -> dcsm-EF_MDP_ON | L3: =VLOOKUP(G3,List!B:G,6,0) -> 11 | N3: 0000 CALL dcsm-EF_MDP_ON -Run | P3: CALL | Q3: dcsm-EF_MDP_ON | U3: =+IF(Q3=K3,"","x") -> 
C4: =D3 ->  | D4: =C4+H4/3600/24 ->  | G4: MDP_CRUISE_SET | H4: =VLOOKUP(G4,List!B:C,2,0) -> 42 | K4: =VLOOKUP(G4,List!B:E,4,0) -> dcsm-EF_MDP_CRUISE_SET | L4: =VLOOKUP(G4,List!B:G,6,0) -> 2 | N4: 0000 CALL dcsm-EF_MDP_CRUISE_SET -Run
F5: TLM mode change (MODE_10) | G5: TLM_MODE_10 | H5: =VLOOKUP(G5,List!B:C,2,0) -> 42 | K5: =VLOOKUP(G5,List!B:E,4,0) -> dcsm-EF_BUS_TLM_MODE_10 | L5: =VLOOKUP(G5,List!B:G,6,0) -> 2 | N5: 0000 CALL dcsm-EF_BUS_TLM_MODE_10 -Run
D6: =C6+H6/3600/24 ->  | F6: SI ON | G6: MEA1_ON_SETUP_SW | H6: =VLOOKUP(G6,List!B:C,2,0) -> 292 | K6: =VLOOKUP(G6,List!B:E,4,0) -> dcsm-EF_MEA1_ON_SW | L6: =VLOOKUP(G6,List!B:G,6,0) -> 12 | N6: 0000 CALL dcsm-EF_MEA1_ON_SW -Run
G7: HEP_ON_SETUP | H7: =VLOOKUP(G7,List!B:C,2,0) -> 1230 | K7: =VLOOKUP(G7,List!B:E,4,0) -> dcsm-EF_HEP_ON_START_for_TL | L7: =VLOOKUP(G7,List!B:G,6,0) -> 34 | N7: 0000 CALL dcsm-EF_HEP_ON_START_for_TL -Run | P7: CALL | Q7: dcsm-EF_MDP_CRUISE_SET | U7: x
G8: PME_ON | H8: =VLOOKUP(G8,List!B:C,2,0) -> 80 | K8: =VLOOKUP(G8,List!B:E,4,0) -> dcsm-EF_PME_ON | L8: =VLOOKUP(G8,List!B:G,6,0) -> 2 | N8: 0000 CALL dcsm-EF_PME_ON -Run | P8: CALL | Q8: dcsm-EF_BUS_TLM_MODE_10 | U8: x
G9: MGF_ON_SETUP | H9: =VLOOKUP(G9,List!B:C,2,0) -> 14 | K9: =VLOOKUP(G9,List!B:E,4,0) -> dcsm-EF_MGF_ON | L9: =VLOOKUP(G9,List!B:G,6,0) -> 3 | N9: 0000 CALL dcsm-EF_MGF_ON -Run

Sheet END
A1: Start | B1: End | C1: Start | D1: End | E1: Event | F1: Activity | G1: Procedure | H1: Duration (sec) | L1: cmd count | N1: cmd count
C2: =D2-H2/3600/24 ->  | D2: =C3 ->  | F2: SI OFF | G2: HEP_OFF | H2: =VLOOKUP(G2,List!B:C,2,0) -> 70 | K2: =VLOOKUP(G2,List!B:E,4,0) -> dcsm-EF_HEPE_OFF_STOP | L2: =VLOOKUP(G2,List!B:G,6,0) -> 4 | M2: =C2-317/3600/24 ->  | N2: =+"0000 CALL "&K2&" -Run" -> 0000 CALL dcsm-EF_HEPE_OFF_STOP -Run | P2: CALL | Q2: dcsm-EF_HEPE_OFF_STOP | U2: =+IF(Q2=K2,"","x") -> 
G3: MEA1_OFF | H3: =VLOOKUP(G3,List!B:C,2,0) -> 160 | K3: =VLOOKUP(G3,List!B:E,4,0) -> dcsm-EF_MEA1_OFF | L3: =VLOOKUP(G3,List!B:G,6,0) -> 4 | N3: =+"0000 CALL "&K3&" -Run" -> 0000 CALL dcsm-EF_MEA1_OFF -Run | P3: CALL | Q3: dcsm-EF_MEA1_OFF
G4: MGF_OFF | H4: =VLOOKUP(G4,List!B:C,2,0) -> 8 | K4: =VLOOKUP(G4,List!B:E,4,0) -> dcsm-EF_MGF_OFF | L4: =VLOOKUP(G4,List!B:G,6,0) -> 1 | N4: 0000 CALL dcsm-EF_MGF_OFF -Run | P4: CALL | Q4: dcsm-EF_MGF_OFF
G5: PME_OFF | H5: =VLOOKUP(G5,List!B:C,2,0) -> 40 | K5: =VLOOKUP(G5,List!B:E,4,0) -> dcsm-EF_PME_OFF | L5: =VLOOKUP(G5,List!B:G,6,0) -> 1 | N5: 0000 CALL dcsm-EF_PME_OFF -Run | P5: CALL | Q5: dcsm-EF_PME_OFF
F6: MDP OFF | G6: MDP_OFF_D | H6: =VLOOKUP(G6,List!B:C,2,0) -> 120 | K6: =VLOOKUP(G6,List!B:E,4,0) -> dcsm-EF_MDP_POWEROFF | L6: =VLOOKUP(G6,List!B:G,6,0) -> 3 | N6: 0000 CALL dcsm-EF_MDP_POWEROFF -Run | P6: CALL | Q6: dcsm-EF_MDP_POWEROFF
D7: =C8 ->  | F7: BUS OFF | G7: BUS_OFF_D | H7: =VLOOKUP(G7,List!B:C,2,0) -> 220 | K7: =VLOOKUP(G7,List!B:E,4,0) -> dcsm-EF_BUS_MONI_OFF | L7: =VLOOKUP(G7,List!B:G,6,0) -> 5 | N7: 0000 CALL dcsm-EF_BUS_MONI_OFF -Run | U7: =+IF(#REF!=K7,"","x") -> 
C8: =#REF! ->  | D8: =C8+H8/3600/24 ->  | E8: =#REF! ->  | G8: END | H8: 1200 | K8: =VLOOKUP(G8,List!B:E,4,0) ->  | L8: 0

Sheet LOOP
A1: Start | B1: End | C1: Start | D1: End | E1: Event | F1: Activity | G1: Procedure | H1: Duration (sec) | L1: cmd count | N1: cmd count
C2: =#REF! ->  | D2: =C2+H2/3600/24 ->  | F2: SI HV ON | G2: MEA1_HV_ON | H2: =VLOOKUP(G2,List!B:C,2,0) -> 1702 | K2: =VLOOKUP(G2,List!B:E,4,0) -> dcsm-EF_MEA1_HV_ON | L2: =VLOOKUP(G2,List!B:G,6,0) -> 27 | M2: =C2-317/3600/24 ->  | N2: =+"0000 CALL "&K2&" -Run" -> 0000 CALL dcsm-EF_MEA1_HV_ON -Run | P2: CALL | Q2: dcsm-EF_MEA1_HV_ON | U2: =+IF(Q2=K2,"","x") -> 
C3: =D2 ->  | G3: HEP_HV_ON | H3: =VLOOKUP(G3,List!B:C,2,0) -> 270 | K3: =VLOOKUP(G3,List!B:E,4,0) -> dcsm-EF_HEPE_HV_ON_OBS_START | L3: =VLOOKUP(G3,List!B:G,6,0) -> 6 | N3: =+"0000 CALL "&K3&" -Run" -> 0000 CALL dcsm-EF_HEPE_HV_ON_OBS_START -Run | P3: CALL | Q3: dcsm-EF_HEPE_HV_ON_OBS_START
F4: TLM mode change (MODE_5) | G4: TLM_MODE_5 | H4: =VLOOKUP(G4,List!B:C,2,0) -> 42 | K4: =VLOOKUP(G4,List!B:E,4,0) -> dcsm-EF_BUS_TLM_MODE_5 | L4: =VLOOKUP(G4,List!B:G,6,0) -> 2 | N4: 0000 CALL dcsm-EF_BUS_TLM_MODE_5 -Run | P4: CALL | Q4: dcsm-EF_BUS_TLM_MODE_5
D5: =C6 ->  | E5: Observation D | H5: =(D5-C5)*3600*24 ->  | I5: =H5/3600 ->  | L5: 0 | N5: ="0000 WAIT_SEC "&TEXT(H5,"#0") ->  | P5: WAIT_SEC | Q5: 26900 | U5: x
C6: =D6-H6/3600/24 ->  | D6: =C7 ->  | F6: TLM mode change (MODE_10) | G6: TLM_MODE_10 | H6: =VLOOKUP(G6,List!B:C,2,0) -> 42 | K6: =VLOOKUP(G6,List!B:E,4,0) -> dcsm-EF_BUS_TLM_MODE_10 | L6: =VLOOKUP(G6,List!B:G,6,0) -> 2 | N6: =+"0000 CALL "&K6&" -Run" -> 0000 CALL dcsm-EF_BUS_TLM_MODE_10 -Run | P6: CALL | Q6: dcsm-EF_BUS_TLM_MODE_10
C7: =D7-H7/3600/24 ->  | D7: =C8 ->  | F7: SI HV OFF | G7: HEP_HV_OFF | H7: =VLOOKUP(G7,List!B:C,2,0) -> 190 | K7: =VLOOKUP(G7,List!B:E,4,0) -> dcsm-EF_HEPE_HV_OFF_OBS_OFF | L7: =VLOOKUP(G7,List!B:G,6,0) -> 5 | N7: 0000 CALL dcsm-EF_HEPE_HV_OFF_OBS_OFF -Run | P7: CALL | Q7: dcsm-EF_HEPE_HV_OFF_OBS_OFF
C8: =D8-H8/3600/24 ->  | D8: =C9 ->  | G8: MEA1_HV_OFF | H8: =VLOOKUP(G8,List!B:C,2,0) -> 182 | K8: =VLOOKUP(G8,List!B:E,4,0) -> dcsm-EF_MEA1_HV_OFF | L8: =VLOOKUP(G8,List!B:G,6,0) -> 10 | N8: 0000 CALL dcsm-EF_MEA1_HV_OFF -Run | P8: CALL | Q8: dcsm-EF_MEA1_HV_OFF
C9: =#REF! ->  | D9: =C9+H9/3600/24 ->  | E9: WOL | G9: =(#REF!-D8)*24*3600 ->  | H9: 1200 | K9: =VLOOKUP(G9,#REF!,4,0) ->  | L9: 0 | N9: ="0000 WAIT_SEC "&TEXT(G9,"#0") ->  | P9: WAIT_SEC | Q9: 1800

Sheet COMMENT
A1: activity | B1: Comment
A2: main_start | B2: #!HEAD: main2-CROUSE_OBS6_XDOR_001_M63 2021-07-01 01:18:36 478 45 MMO MAIN2 // Earth Fly-by 0001 . # LET @ONERR=NEXT 0002 . # ========================================================================== 0003 # <startTime>2021-07-06T08:00:00Z</startTime> 0004 # <stopTime>2021-07-15T10:00:00Z</stopTime> 0005 # << XDOR:XDOR_BJXR_C%%%_CRCO_M&&&&&&_00001.BC >> 連続送信***** 0006 # << XOR:XOR__BJXR_C%%%_CRCO_M&&&&&&_00001.BC >> ***** 0007 # ========================================================================== 0008 # ========================================================================== 0009 . # EXEC_AT 2021-07-06 08:00:00 0010 # ◆◇◆◇◆◇◆◇◆◇◆◇◆◇◆◇◆◇◆◇◆◇◆◇◆◇◆◇◆◇◆◇◆◇◆◇◆ 0015 # ========================================================================== 0016 # 0. MMO MOSIF Heater & Switch to Standby Mode 0017 # ========================================================================== 0018 # 0019 # Change MOSIF Heater Setting (14sec) 0020 # <forMPO>AJXF017A</forMPO> 0021 WAIT_SEC 20 0019 # Change MOSIF R Heater Setting 0020 # <forMPO>AJXF017C</forMPO> 0021 WAIT_SEC 42580 0022 # 0023 # MMO Switch to Standby Mode (main) (300sec) 0024 # <forMPO>AJXF001A</forMPO> 0025 WAIT_SEC 360 0026 # 0027 # MMO Set HK rate to 64 second (3sec) 0028 # <forMPO>AJXF005A</forMPO> 0029 WAIT_SEC 240 0030 #
A3: main_end | B3: 0122 # ========================================================================== 0123 # 99. MMO Dormant Mode 0124 # ========================================================================== 0125 WAIT_SEC 240 0126 # 0127 # MMO Set HK rate to 1 second (3sec) 0128 # <forMPO>AJXF004A</forMPO> 0129 WAIT_SEC 120 0130 # 0131 # MMO Switch to Dormant Mode (70sec) 0132 # <forMPO>AJXF002A</forMPO> 0133 WAIT_SEC 300 0134 # 0135 # Return MOSIF heater setting (14sec) 0136 # <forMPO>AJXF017B</forMPO> 0133 WAIT_SEC 20 0135 # Return MOSIF R heater setting (14sec) 0136 # <forMPO>AJXF017D</forMPO> 0291 #############################################################################
A4: OBS | B4: 0068 # ========================================================================== 0069 # @@. Observation \\ 0070 # ========================================================================== 0071 #
A5: WOL | B5: 0217 # ========================================================================== 0218 # @@. WOL # $$ 0219 # ========================================================================== 0220 #
A6: BUS_ON | B6: 0016 # ========================================================================== 0017 # @@. BUS ON 0018 # ========================================================================== 0019 #
A7: MDP ON | B7: 0020 # ========================================================================== 0021 # @@. MDP ON 0022 # ========================================================================== 0023 #
A8: SI Check
A9: MDP OFF | B9: 0274 # ========================================================================== 0275 # @@. MDP OFF 0276 # ========================================================================== 0277 #
A10: BUS OFF | B10: 0285 # ========================================================================== 0286 # @@. BUS MONI OFF 0287 # ========================================================================== 0288 #
A11: SI ON | B11: 0034 # ========================================================================== 0035 # @@. PI POWER ON 0036 # ========================================================================== 0037 #
A12: SI HV ON | B12: 0049 # ========================================================================== 0050 # @@. PI HV ON 0051 # ========================================================================== 0052 #
A13: TLM mode change (MODE_5) | B13: 0059 # ========================================================================== 0060 # @@. TLM MODE 5 (Mission: 7kbps, without user HK) 0061 # ========================================================================== 0062 #
A14: TLM mode change (MODE_10) | B14: 0028 # ========================================================================== 0029 # @@. TLM MODE 10 (Mission: 4kbps, with user HK) 0030 # ========================================================================== 0031 #
A15: SI HV OFF | B15: 0207 # ========================================================================== 0208 # @@. PI HV OFF 0209 # ========================================================================== 0210 #
A16: SI OFF | B16: 0259 # ========================================================================== 0260 # @@. PI Power OFF 0261 # ========================================================================== 0262 #
A17: MSA SOFT RESET
A18: MACRO COMMAND ENA | B18: 0280 # ========================================================================== 0281 # @@. MACRO ENA 0282 # ========================================================================== 0283 #
A19: CrouseCheckOut
A21: main_start(XDOR) 改修により使用不可 | B21: #!HEAD: main2-CROUSE_OBS6_XDOR_001_M63 2021-07-01 01:18:36 478 45 MMO MAIN2 // Earth Fly-by 0001 . # LET @ONERR=NEXT 0002 . # ========================================================================== 0003 # <startTime>2021-07-06T08:00:00Z</startTime> 0004 # <stopTime>2021-07-15T10:00:00Z</stopTime> 0005 # << XDOR:XDOR_BJXR_C%%%_CRCO_M&&&&&&_00001.BC >> 連続送信***** 0006 # << XOR:XOR__BJXR_C%%%_CRCO_M&&&&&&_00001.BC >> ***** 0007 # ========================================================================== 0008 # ========================================================================== 0009 . # EXEC_AT 2021-07-06 08:00:00 0010 # ◆◇◆◇◆◇◆◇◆◇◆◇◆◇◆◇◆◇◆◇◆◇◆◇◆◇◆◇◆◇◆◇◆◇◆◇◆ 0015 # ========================================================================== 0016 # 0. MMO MOSIF Heater & Switch to Standby Mode 0017 # ========================================================================== 0018 # 0019 # Change MOSIF Heater Setting (14sec) 0020 # <forMPO>AJXF017A</forMPO> 0021 WAIT_SEC 42586 0022 # 0023 # MMO Switch to Standby Mode (main) (300sec) 0024 # <forMPO>AJXF001A</forMPO> 0025 WAIT_SEC 60 0026 # 0027 # MMO Set HK rate to 64 second (3sec) 0028 # <forMPO>AJXF005A</forMPO> 0029 WAIT_SEC 237 0030 # | C21: 仕様変更により使用しない
A22: main_start(XOR) | B22: #!HEAD: main2-CROUSE_OBS6_XDOR_001_M63 2021-07-01 01:18:36 478 45 MMO MAIN2 // Earth Fly-by 0001 . # LET @ONERR=NEXT 0002 . # ========================================================================== 0003 # <startTime>2021-07-06T08:00:00Z</startTime> 0004 # <stopTime>2021-07-15T10:00:00Z</stopTime> 0005 # << XDOR:XDOR_BJXR_C%%%_CRCO_M&&&&&&_00001.BC >> 連続送信***** 0006 # << XOR:XOR__BJXR_C%%%_CRCO_M&&&&&&_00001.BC >> ***** 0007 # ========================================================================== 0008 # ========================================================================== 0009 . # EXEC_AT 2021-07-06 08:00:00 0010 # ◆◇◆◇◆◇◆◇◆◇◆◇◆◇◆◇◆◇◆◇◆◇◆◇◆◇◆◇◆◇◆◇◆◇◆◇◆ 0015 # ========================================================================== 0016 # 0. MMO MOSIF Heater & Switch to Standby Mode 0017 # ========================================================================== 0018 # 0019 # Change MOSIF Heater Setting (14sec) 0020 # <forMPO>AJXF017A</forMPO> 0021 WAIT_SEC 42600 0022 # 0023 # MMO Switch to Standby Mode (main) (300sec) 0024 # <forMPO>AJXF001A</forMPO> 0025 WAIT_SEC 360 0026 # 0027 # MMO Set HK rate to 64 second (3sec) 0028 # <forMPO>AJXF005A</forMPO> 0029 WAIT_SEC 240 0030 #
A23: main_end(XDOR)改修により使用不可 | B23: 0122 # ========================================================================== 0123 # 99. MMO Dormant Mode 0124 # ========================================================================== 0125 WAIT_SEC 240 0126 # 0127 # MMO Set HK rate to 1 second (3sec) 0128 # <forMPO>AJXF004A</forMPO> 0129 WAIT_SEC 117 0130 # 0131 # MMO Switch to Dormant Mode (70sec) 0132 # <forMPO>AJXF002A</forMPO> 0133 WAIT_SEC 230 0134 # 0135 # Return MOSIF heater setting (14sec) 0136 # <forMPO>AJXF017B</forMPO> 0291 #############################################################################
A24: main_end(XOR) | B24: 0122 # ========================================================================== 0123 # 99. MMO Dormant Mode 0124 # ========================================================================== 0125 WAIT_SEC 240 0126 # 0127 # MMO Set HK rate to 1 second (3sec) 0128 # <forMPO>AJXF004A</forMPO> 0129 WAIT_SEC 120 0130 # 0131 # MMO Switch to Dormant Mode (70sec) 0132 # <forMPO>AJXF002A</forMPO> 0133 WAIT_SEC 300 0134 # 0135 # Return MOSIF heater setting (14sec) 0136 # <forMPO>AJXF017B</forMPO> 0291 #############################################################################

Sheet List
C1: Duration (sec) | D1: source filename | E1: filename | G1: cmdcount
A2: BUS | B2: BUS_CEL_MONI_OFF | C2: 40 | E2: dcsm-BUS_CEL_MONI_OFF | G2: 1
B3: BUS_CEL_MONI_ON | C3: 40 | E3: dcsm-BUS_CEL_MONI_ON | G3: 1
B4: BUS_CHG_BEFORE_CHK | C4: 0 | E4: dcsm-BUS_CHG_BEFORE_CHK | G4: 0
B5: BUS_CHG_EMERGENCY_OFF | C5: 86 | E5: dcsm-BUS_CHG_Emergency_OFF | G5: 5
B6: BUS_CHG_SET | C6: 298 | E6: dcsm-BUS_CHG_SET | G6: 14
B7: BUS_CHG_START | C7: 82 | E7: dcsm-BUS_CHG_START | G7: 2
B8: BUS_CHG_STOP_BAT-EXT | C8: 160 | E8: dcsm-BUS_CHG_STOP_BAT-EXT | G8: 4
B9: BUS_MMO_OFF | C9: 140 | E9: dcsm-BUS_MMO_OFF | G9: 1
B10: BUS_MMO_ON | C10: 80 | E10: dcsm-BUS_MMO_ON | G10: 2
A11: CRCO | B11: CRCO_BUS_MONI_ON | C11: 310 | E11: dcsm-CRCO_BUS_MONI_ON | G11: 10
B12: CRCO_CEL_MONI_OFF | C12: 40 | E12: dcsm-CRCO_CEL_MONI_OFF | G12: 1
B13: CRCO_ENA | C13: 1134 | E13: dcsm-CRCO_ENA_CHECK | G13: 18
B14: CRCO_HEPE | C14: 2206 | E14: dcsm-CRCO_HEPE_CHECK | G14: 36
B15: CRCO_HEPI | C15: 2730 | E15: dcsm-CRCO_HEPI_CHECK | G15: 48
B16: CRCO_MASTWPT | C16: 1848 | E16: dcsm-CRCO_MASTWPT_CHECK | G16: 41
B17: CRCO_MDM | C17: 2108 | E17: dcsm-CRCO_MDM_CHECK | G17: 45
B18: CRCO_MDP_OFF | C18: 120 | E18: dcsm-CRCO_MDP_OFF | G18: 4
B19: CRCO_MDP_ON | C19: 509 | E19: dcsm-CRCO_MDP_ON | G19: 12
B20: CRCO_MEA | C20: 4620 | E20: dcsm-CRCO_MEA_CHECK | G20: 52
B21: CRCO_MGF | C21: 3969 | E21: dcsm-CRCO_MGF_CHECK | G21: 49
B22: CRCO_MIA_C | C22: 1892 | E22: dcsm-CRCO_MIA_CHECK_C | G22: 20
B23: CRCO_MSASI | C23: 6688 | E23: dcsm-CRCO_MSASI_CHECK | G23: 23
B24: CRCO_MSA_C | C24: 1102 | E24: dcsm-CRCO_MSA_CHECK_C | G24: 19
B25: CRCO_PME_OFF | C25: 120 | E25: dcsm-CRCO_PME_OFF | G25: 5
B26: CRCO_PME_ON | C26: 160 | E26: dcsm-CRCO_PME_ON | G26: 5
B27: CRCO_PWI | C27: 2448 | E27: dcsm-CRCO_PWI_CHECK | G27: 51
B28: CRCO_SI_READY | C28: 377 | E28: dcsm-CRCO_SI_READY | G28: 17
A29: BUS | B29: BUS_OFF_D | C29: 220 | E29: dcsm-EF_BUS_MONI_OFF | G29: 5
B30: BUS_SETUP_D | C30: 577 | E30: dcsm-EF_BUS_MONI_ON | G30: 20
B31: TLM_MODE_10 | C31: 42 | E31: dcsm-EF_BUS_TLM_MODE_10 | G31: 2
B32: TLM_MODE_5 | C32: 42 | E32: dcsm-EF_BUS_TLM_MODE_5 | G32: 2
B33: TLM_MODE_7 | C33: 2 | E33: dcsm-EF_BUS_TLM_MODE_7 | G33: 1
A34: ENA | B34: ENA_HV_OFF | C34: 198 | E34: dcsm-EF_ENA_HV_OFF | G34: 4
B35: ENA_HV_ON | C35: 344 | E35: dcsm-EF_ENA_HV_ON | G35: 18
B36: ENA_HV_ON_CNT | C36: 344 | E36: dcsm-EF_ENA_HV_ON_CNT | G36: 18
B37: ENA_HV_ON_H | C37: 344 | E37: dcsm-EF_ENA_HV_ON_H | G37: 18
B38: ENA_OFF | C38: 88 | E38: dcsm-EF_ENA_power_OFF | G38: 4
B39: ENA_ON_SETUP | C39: 564 | E39: dcsm-EF_ENA_power_ON | G39: 7
A40: HEP | B40: HEP_HV_OFF | C40: 190 | E40: dcsm-EF_HEPE_HV_OFF_OBS_OFF | G40: 5
B41: HEP_HV_ON | C41: 270 | E41: dcsm-EF_HEPE_HV_ON_OBS_START | G41: 6
B42: HEP_OFF | C42: 70 | E42: dcsm-EF_HEPE_OFF_STOP | G42: 4
B43: HEP_ON_SETUP | C43: 1230 | E43: dcsm-EF_HEP_ON_START_for_TL | G43: 34
A44: MDM | B44: MDM_OFF | C44: 160 | E44: dcsm-EF_MDM_OFF | G44: 4
B45: MDM_ON_SETUP | C45: 202 | E45: dcsm-EF_MDM_ON | G45: 6
A46: MDP | B46: MDP_CRUISE_SET | C46: 42 | E46: dcsm-EF_MDP_CRUISE_SET | G46: 2
B47: MDP_ERR_DUMP | C47: 9080 | E47: dcsm-EF_MDP_ERR_DUMP | G47: 6
B48: MDP_ON_D | C48: 509 | E48: dcsm-EF_MDP_ON | G48: 11
B49: MDP_OFF_D | C49: 120 | E49: dcsm-EF_MDP_POWEROFF | G49: 3
A50: MEA | B50: MEA1_HV_OFF | C50: 182 | E50: dcsm-EF_MEA1_HV_OFF | G50: 10
B51: MEA1_HV_ON | C51: 1702 | E51: dcsm-EF_MEA1_HV_ON | G51: 27
B52: MEA1_HV_SCAN_OFF | C52: 186 | E52: dcsm-EF_MEA1_HV_SCAN_OFF | G52: 12
B53: MEA1_OFF | C53: 160 | E53: dcsm-EF_MEA1_OFF | G53: 4
B54: MEA1_ON_SETUP_SW | C54: 292 | E54: dcsm-EF_MEA1_ON_SW | G54: 12
B55: MEA_HV_OFF | C55: 202 | E55: dcsm-EF_MEA_HV_OFF | G55: 20
B56: MEA_HV_ON | C56: 1756 | E56: dcsm-EF_MEA_HV_ON | G56: 54
B57: MEA_HV_ON_MOD | C57: 126 | E57: dcsm-EF_MEA_HV_ON_modified | G57: 6
B58: MEA_HV_SCAN_OFF | C58: 210 | E58: dcsm-EF_MEA_HV_SCAN_OFF | G58: 24
B59: MEA_OFF | C59: 164 | E59: dcsm-EF_MEA_OFF | G59: 6
B60: MEA_ON_SETUP_MAG | C60: 386 | E60: dcsm-EF_MEA_ON_MAG | G60: 21
B61: MEA_ON_SETUP_SW | C61: 386 | E61: dcsm-EF_MEA_ON_SW | G61: 21
A62: MGF | B62: MGF_OFF | C62: 8 | E62: dcsm-EF_MGF_OFF | G62: 1
B63: MGF_ON_SETUP | C63: 14 | E63: dcsm-EF_MGF_ON | G63: 3
A64: MIA | B64: MIA_HV_OFF | C64: 60 | E64: dcsm-EF_MIA_HV_OFF | G64: 1
B65: MIA_HV_ON | C65: 240 | E65: dcsm-EF_MIA_HV_ON | G65: 6
B66: MIA_HV_ON_MAG | C66: 142 | E66: dcsm-EF_MIA_HV_ON_MAG | G66: 4
B67: MIA_HV_ON_MAG_RC | C67: 262 | E67: dcsm-EF_MIA_HV_ON_MAG_RC | G67: 7
B68: MIA_HV_ON_RC | C68: 280 | E68: dcsm-EF_MIA_HV_ON_RC | G68: 7
B69: MIA_HV_ON_SW | C69: 102 | E69: dcsm-EF_MIA_HV_ON_SW | G69: 3
B70: MIA_HV_ON_SW_RC | C70: 262 | E70: dcsm-EF_MIA_HV_ON_SW_RC | G70: 7
B71: MIA_OFF | C71: 160 | E71: dcsm-EF_MIA_OFF | G71: 4
B72: MIA_ON_SETUP | C72: 382 | E72: dcsm-EF_MIA_ON | G72: 6
B73: MIA_ON_ASIC_LDET | C73: 582 | E73: dcsm-EF_MIA_ON_ASIC_LDET | G73: 11
B74: MIA_ON_C | C74: 0 | E74: dcsm-EF_MIA_ON_C | G74: 0
A75: MSA | B75: MSA_HV_OFF | C75: 714 | E75: dcsm-EF_MSA_HV_OFF | G75: 24
B76: MSA_HV_OFF_VFB | C76: 774 | E76: dcsm-EF_MSA_HV_OFF_VFB | G76: 25
B77: MSA_HV_ON_1 | C77: 4692 | E77: dcsm-EF_MSA_HV_ON_1 | G77: 108
B78: MSA_HV_ON_1_MFB_SF | C78: 1573 | E78: dcsm-EF_MSA_HV_ON_1_MFB_Safe | G78: 108
B79: MSA_HV_ON_VFB1 | C79: 2882 | E79: dcsm-EF_MSA_HV_ON_1_VFB | G79: 108
B80: MSA_HV_ON_2 | C80: 6262 | E80: dcsm-EF_MSA_HV_ON_2 | G80: 124
B81: MSA_HV_ON_2_MFB_SF | C81: 1860 | E81: dcsm-EF_MSA_HV_ON_2_MFB_Safe | G81: 124
B82: MSA_HV_ON_VFB2 | C82: 3262 | E82: dcsm-EF_MSA_HV_ON_2_VFB | G82: 124
B83: MSA_OFF | C83: 380 | E83: dcsm-EF_MSA_OFF | G83: 25
B84: MSA_ON_SETUP | C84: 1092 | E84: dcsm-EF_MSA_ON | G84: 15
B85: MSA_ON_SETUP_C | C85: 1092 | E85: dcsm-EF_MSA_ON_C | G85: 15
B86: MSA_SOFT_RESET | C86: 120 | E86: dcsm-EF_MSA_SOFT_RESET | G86: 3
B87: MSA_SOFT_RESET2 | C87: 100 | E87: dcsm-EF_MSA_SOFT_RESET2 | G87: 5
A88: PME | B88: PME_OFF | C88: 40 | E88: dcsm-EF_PME_OFF | G88: 1
B89: PME_ON | C89: 80 | E89: dcsm-EF_PME_ON | G89: 2
A90: PWI | B90: PWI_OFF | C90: 80 | E90: dcsm-EF_PWI_OFF | G90: 2
B91: PWI_ON | C91: 828 | E91: dcsm-EF_PWI_ON | G91: 26
B92: PWI_ON_SETUP | C92: 868 | E92: dcsm-EF_PWI_ON_CRUISE | G92: 27
A93: MACRO | B93: MC_ENA | C93: 246 | E93: dcsm-MC_ENA_MDP | G93: 21
A94: MDP | B94: MDP_AP9_DUMP | C94: 1880 | E94: dcsm-MDP_AP09_LOG_DUMP | G94: 4
B95: MDP_ERR_LOG_DUMP | C95: 9080 | E95: dcsm-MDP_ERR_LOG_DUMP | G95: 6
B96: MDP_HK_REPEINT_6 | C96: 42 | E96: dcsm-MDP_HK_REPINT_6 | G96: 2
A97: MEA | B97: MEA2_MEM_DMP | C97: 2550 | E97: dcsm-MEA2_MEM_DMP | G97: 36
A98: MSASI | B98: MSASI_DARK_1 | C98: 768 | E98: dcsm-MSASI_dark_CO_sequence1 | G98: 11
B99: MSASI_DARK_2 | C99: 19498 | E99: dcsm-MSASI_dark_CO_sequence2 | G99: 55
A100: MSA | B100: MSA_TABLE_UPLOAD | C100: 0 | E100: dcsm-MSA_TABLE_UPLOAD | G100: 0
A101: TCFS | B101: TCSF_MSASI | C101: 345 | E101: dcsm-tcfs_tbl1_msasi_set | G101: 13
A102: WAIT | B102: WAIT3600 | C102: 3600
B103: WAIT3500 | C103: 3500
B104: WAIT19357 | C104: 19357
B105: WAIT1800 | C105: 1800 | E105: WAIT_SEC 1800
B106: WAIT10800 | C106: 10800 | E106: WAIT_SEC 10800
B107: WAIT600 | C107: 600 | E107: WAIT_SEC 600

Sheet WOL
C1: START TIME | D1: 2022-05-17T19:10:00
C2: END TIME | D2: 2022-05-18T04:14:05
B3: ID | D3: date time excel | E3: duration(s)
B8: WOLS | C8: WOL#1 | D8: 2021-10-07T06:30:00 | E8: 1200
B9: WOLS | C9: WOL#2 | D9: 2021-10-08T04:26:50 | E9: 1200
B10: WOLS | C10: WOL#3 | D10: 2021-10-08T16:46:14 | E10: 1200

Sheet obs_sequence
A1: START | C1: =WOL!D1 -> 2022-05-17T19:10:00 | D1: OBCP START | E1: =C1-12*60*60/3600/24 -> 2022-05-17T07:10:00 | L1: 5days
A2: END | C2: =WOL!D2 -> 2022-05-18T04:14:05 | D2: OBCP END | E2: =C2+(240+120+300)/3600/24 -> 2022-05-18T04:25:05 | F2: CMD END | G2: =C2-100/3600/24 -> 2022-05-18T04:12:25
A4: Relative time (h) | C4: Absolute time (UTC) | L4: =+SUM(L6:L58) -> 356
A5: Start | B5: End | C5: Start | D5: End | E5: Event | F5: Activity | G5: Procedure | H5: Duration (sec) | L5: cmd count | M5: XOR Time | N5: cmd count
C6: =C1 -> 2022-05-17T19:10:00 | D6: =C6+H6/3600/24 -> 2022-05-17T19:15:10 | F6: BUS ON | G6: CRCO_BUS_MONI_ON | H6: =VLOOKUP(G6,List!B:C,2,0) -> 310 | K6: =VLOOKUP(G6,List!B:E,4,0) -> dcsm-CRCO_BUS_MONI_ON | L6: =VLOOKUP(G6,List!B:G,6,0) -> 10 | M6: =C6-317/3600/24 -> 2022-05-17T19:04:43 | N6: =+"0000 CALL "&K6&" -Run" -> 0000 CALL dcsm-CRCO_BUS_MONI_ON -Run
C7: =D6 -> 2022-05-17T19:15:10 | D7: =C7+H7/3600/24 -> 2022-05-17T19:21:27 | G7: CRCO_SI_READY | H7: =VLOOKUP(G7,List!B:C,2,0) -> 377 | K7: =VLOOKUP(G7,List!B:E,4,0) -> dcsm-CRCO_SI_READY | L7: =VLOOKUP(G7,List!B:G,6,0) -> 17 | M7: 2022-05-17T19:09:53 | N7: 0000 CALL dcsm-CRCO_SI_READY -Run
C8: =D7 -> 2022-05-17T19:21:27 | D8: =C8+H8/3600/24 -> 2022-05-17T19:22:07 | G8: CRCO_CEL_MONI_OFF | H8: =VLOOKUP(G8,List!B:C,2,0) -> 40 | K8: =VLOOKUP(G8,List!B:E,4,0) -> dcsm-CRCO_CEL_MONI_OFF | L8: =VLOOKUP(G8,List!B:G,6,0) -> 1 | M8: 2022-05-17T19:16:10 | N8: 0000 CALL dcsm-CRCO_CEL_MONI_OFF -Run
C9: 2022-05-17T19:22:07 | D9: 2022-05-17T19:30:36 | F9: MDP ON | G9: CRCO_MDP_ON | H9: =VLOOKUP(G9,List!B:C,2,0) -> 509 | K9: =VLOOKUP(G9,List!B:E,4,0) -> dcsm-CRCO_MDP_ON | L9: =VLOOKUP(G9,List!B:G,6,0) -> 12 | M9: 2022-05-17T19:16:50 | N9: 0000 CALL dcsm-CRCO_MDP_ON -Run
C10: 2022-05-17T19:30:36 | D10: 2022-05-17T19:33:16 | F10: SI CHECK | G10: CRCO_PME_ON | H10: =VLOOKUP(G10,List!B:C,2,0) -> 160 | K10: =VLOOKUP(G10,List!B:E,4,0) -> dcsm-CRCO_PME_ON | L10: =VLOOKUP(G10,List!B:G,6,0) -> 5 | M10: 2022-05-17T19:25:19 | N10: 0000 CALL dcsm-CRCO_PME_ON -Run
C11: 2022-05-17T19:33:16 | D11: 2022-05-17T20:14:04 | G11: CRCO_PWI | H11: =VLOOKUP(G11,List!B:C,2,0) -> 2448 | K11: =VLOOKUP(G11,List!B:E,4,0) -> dcsm-CRCO_PWI_CHECK | L11: =VLOOKUP(G11,List!B:G,6,0) -> 51 | M11: 2022-05-17T19:27:59 | N11: 0000 CALL dcsm-CRCO_PWI_CHECK -Run
C12: 2022-05-17T20:14:04 | D12: 2022-05-17T21:20:13 | G12: CRCO_MGF | H12: =VLOOKUP(G12,List!B:C,2,0) -> 3969 | K12: =VLOOKUP(G12,List!B:E,4,0) -> dcsm-CRCO_MGF_CHECK | L12: =VLOOKUP(G12,List!B:G,6,0) -> 49 | M12: 2022-05-17T20:08:47 | N12: 0000 CALL dcsm-CRCO_MGF_CHECK -Run
C13: 2022-05-17T21:20:13 | D13: 2022-05-17T21:51:01 | G13: CRCO_MASTWPT | H13: =VLOOKUP(G13,List!B:C,2,0) -> 1848 | K13: =VLOOKUP(G13,List!B:E,4,0) -> dcsm-CRCO_MASTWPT_CHECK | L13: =VLOOKUP(G13,List!B:G,6,0) -> 41 | M13: 2022-05-17T21:14:56 | N13: 0000 CALL dcsm-CRCO_MASTWPT_CHECK -Run
C14: 2022-05-17T21:51:01 | D14: 2022-05-17T21:53:01 | G14: CRCO_PME_OFF | H14: =VLOOKUP(G14,List!B:C,2,0) -> 120 | K14: =VLOOKUP(G14,List!B:E,4,0) -> dcsm-CRCO_PME_OFF | L14: =VLOOKUP(G14,List!B:G,6,0) -> 5 | M14: 2022-05-17T21:45:44 | N14: =+"0000 CALL "&K14&" -Run" -> 0000 CALL dcsm-CRCO_PME_OFF -Run
C15: 2022-05-17T21:53:01 | D15: 2022-05-17T22:28:09 | G15: CRCO_MDM | H15: =VLOOKUP(G15,List!B:C,2,0) -> 2108 | K15: =VLOOKUP(G15,List!B:E,4,0) -> dcsm-CRCO_MDM_CHECK | L15: =VLOOKUP(G15,List!B:G,6,0) -> 45 | M15: 2022-05-17T21:47:44 | N15: =+"0000 CALL "&K15&" -Run" -> 0000 CALL dcsm-CRCO_MDM_CHECK -Run
C16: 2022-05-17T22:28:09 | D16: 2022-05-17T22:47:03 | G16: CRCO_ENA | H16: =VLOOKUP(G16,List!B:C,2,0) -> 1134 | K16: =VLOOKUP(G16,List!B:E,4,0) -> dcsm-CRCO_ENA_CHECK | L16: =VLOOKUP(G16,List!B:G,6,0) -> 18 | M16: 2022-05-17T22:22:52 | N16: 0000 CALL dcsm-CRCO_ENA_CHECK -Run
C17: 2022-05-17T22:47:03 | D17: =C17+H17/3600/24 -> 2022-05-18T00:04:03 | G17: CRCO_MEA | H17: =VLOOKUP(G17,List!B:C,2,0) -> 4620 | I17: =H17/3600 -> 1.283333333 | K17: =VLOOKUP(G17,List!B:E,4,0) -> dcsm-CRCO_MEA_CHECK | L17: 0 | M17: 2022-05-17T22:41:46 | N17: 0000 CALL dcsm-CRCO_MEA_CHECK -Run
C18: 2022-05-18T00:04:03 | D18: 2022-05-18T00:22:25 | G18: CRCO_MSA_C | H18: =VLOOKUP(G18,List!B:C,2,0) -> 1102 | K18: =VLOOKUP(G18,List!B:E,4,0) -> dcsm-CRCO_MSA_CHECK_C | L18: =VLOOKUP(G18,List!B:G,6,0) -> 19 | M18: 2022-05-17T23:58:46 | N18: =+"0000 CALL "&K18&" -Run" -> 0000 CALL dcsm-CRCO_MSA_CHECK_C -Run
C19: 2022-05-18T00:22:25 | D19: 2022-05-18T00:53:57 | G19: CRCO_MIA_C | H19: =VLOOKUP(G19,List!B:C,2,0) -> 1892 | K19: =VLOOKUP(G19,List!B:E,4,0) -> dcsm-CRCO_MIA_CHECK_C | L19: =VLOOKUP(G19,List!B:G,6,0) -> 20 | M19: 2022-05-18T00:17:08 | N19: 0000 CALL dcsm-CRCO_MIA_CHECK_C -Run
C20: 2022-05-18T00:53:57 | D20: 2022-05-18T01:30:43 | G20: CRCO_HEPE | H20: =VLOOKUP(G20,List!B:C,2,0) -> 2206 | K20: =VLOOKUP(G20,List!B:E,4,0) -> dcsm-CRCO_HEPE_CHECK | L20: =VLOOKUP(G20,List!B:G,6,0) -> 36 | M20: 2022-05-18T00:48:40 | N20: 0000 CALL dcsm-CRCO_HEPE_CHECK -Run
C21: 2022-05-18T01:30:43 | D21: 2022-05-18T02:16:13 | G21: CRCO_HEPI | H21: =VLOOKUP(G21,List!B:C,2,0) -> 2730 | K21: =VLOOKUP(G21,List!B:E,4,0) -> dcsm-CRCO_HEPI_CHECK | L21: 0 | M21: 2022-05-18T01:25:26 | N21: 0000 CALL dcsm-CRCO_HEPI_CHECK -Run
C22: 2022-05-18T02:16:13 | D22: 2022-05-18T04:07:41 | G22: CRCO_MSASI | H22: =VLOOKUP(G22,List!B:C,2,0) -> 6688 | K22: =VLOOKUP(G22,List!B:E,4,0) -> dcsm-CRCO_MSASI_CHECK | L22: =VLOOKUP(G22,List!B:G,6,0) -> 23 | M22: 2022-05-18T02:10:56 | N22: =+"0000 CALL "&K22&" -Run" -> 0000 CALL dcsm-CRCO_MSASI_CHECK -Run
C23: 2022-05-18T04:07:41 | D23: =C23+H23/3600/24 -> 2022-05-18T04:09:41 | F23: MDP OFF | G23: CRCO_MDP_OFF | H23: =VLOOKUP(G23,List!B:C,2,0) -> 120 | K23: =VLOOKUP(G23,List!B:E,4,0) -> dcsm-CRCO_MDP_OFF | L23: =VLOOKUP(G23,List!B:G,6,0) -> 4 | M23: 2022-05-18T04:02:24 | N23: =+"0000 CALL "&K23&" -Run" -> 0000 CALL dcsm-CRCO_MDP_OFF -Run
C24: =D23 -> 2022-05-18T04:09:41 | D24: =C24+H24/3600/24 -> 2022-05-18T04:29:41 | G24: END | H24: 1200 | L24: 0 | M24: 2022-05-18T04:04:24
